[Event "EICC 2025"]
[Site "Eforie-Nord"]
[Date "2025.03.17"]
[Round "3.19"]
[White "Samadov, Read"]
[Black "Kourkoulos-Arditis, Stamatis"]
[Result "1/2-1/2"]
[Annotator "TA"]
[ECO "E15"]
[WhiteElo "2502"]
[BlackElo "2580"]
[PlyCount "81"]
[EventDate "2025.03.14"]
[EventType "swiss"]
[EventCountry "ROU"]
[SourceTitle "playchess.com"]
[Source "ChessBase"]
[SourceQuality "1"]
[TimeControl "40/5400+30:1800+30"]

{[%evp 11,81,17,16,0,0,0,10,-18,0,6,2,0,0,-7,-11,-17,0,-41,-31,-39,0,0,0,-30,-16,-39,-38,-50,-31,-30,-16,-18,-15,-35,-41,-46,-39,-61,-67,-117,-111,-120,-122,-103,-113,-138,-71,-56,-61,-64,-65,-90,-56,-56,-31,-65,-85,-87,-85,-99,0,0,0,0,0,0,0,0,0,0,0,0]} 1. d4 {[%emt 0:00:04]} Nf6 {[%emt 0:00:04]} 2. c4 {[%emt 0:00:11]} e6 {[%emt 0:00:04]} 3. Nf3 {[%emt 0:00:09]} b6 {[%emt 0:00:06]} 4. g3 {[%emt 0:00:25]} Ba6 {[%emt 0:00:06]} 5. Qc2 {[%emt 0:00:51]} Bb7 {[%emt 0:00:29]} 6. Bg2 {[%emt 0:00:54]} c5 {[%emt 0:00:12]} 7. d5 {[%emt 0:00:41] E15: Queen's Indian: 4 g3 sidelines, 4 g3 Ba6 and 4 g3 Bb7 early deviations.} exd5 {[%emt 0:00:10]} 8. cxd5 {[%emt 0:00:08]} Nxd5 {[%emt 0:00:14]} 9. O-O {[%emt 0:00:20]} Nc6 {[%emt 0:00:26]} 10. Rd1 {[%emt 0:00:17]} Be7 {[%emt 0:00:08][%cal Oe8g8]} 11. Qf5 {[%emt 0:00:53]} ({But not} 11. Rxd5 Nb4 12. Qd1 Bxd5 $17 (12... Nxd5 13. Ne1 $16)) 11... Nf6 {[%emt 0:00:10][%cal Bd5f6,Bf6h5,Bh5g7][%mdl 32]} 12. e4 {[%emt 0:00:35] White sacrificed a pawn} g6 {[%emt 0:00:13]} 13. Qf4 {[%emt 0:00:59]} O-O $36 {[%emt 0:00:09][%mdl 2048] Black has good play.} 14. e5 {[%emt 0:00:41]} Nh5 {[%emt 0:00:14]} 15. Qc4 {[%emt 0:00:39]} Re8 {[%emt 0:02:11]} 16. Nc3 {[%emt 0:13:15]} Ng7 {[%emt 0:01:48]} 17. Nd5 {[%emt 0:09:46]} Ne6 {[%emt 0:02:05]} 18. Be3 {[%emt 0:08:17]} Nb4 {[%emt 0:03:36]} 19. Nf4 {[%emt 0:11:45]} Qc8 {[%emt 0:33:58]} 20. a3 {[%emt 0:06:12]} Nxf4 $146 {[%emt 0:07:48]} (20... Bxf3 21. Bxf3 Nc6 22. Qc3 Ncd4 23. Bxd4 cxd4 24. Qd3 Rb8 25. Rac1 Qd8 26. Nxe6 dxe6 {½-½ Shirov,A (2715)-Leko,P (2707) EU-Cup 31st Skopje 2015 (2.1)}) 21. Bxf4 {[%emt 0:02:44]} Nc6 {[%emt 0:00:24][%cal Bb4c6,Bc6d8,Bd8e6][%mdl 32]} 22. Rd2 {[%emt 0:04:48]} Nd8 {[%emt 0:01:22]} 23. Rad1 {[%emt 0:08:15]} Bc6 {[%emt 0:04:43]} 24. Ne1 {[%emt 0:04:09]} Ne6 {[%emt 0:01:13]} 25. Be3 {[%emt 0:05:15]} (25. Nc2 $15) 25... Qc7 $1 $17 {[%emt 0:03:51]} 26. f4 {[%emt 0:03:51] [#]} Rad8 $1 {[%emt 0:01:09]} 27. g4 {[%emt 0:01:09]} g5 {[%emt 0:09:24]} 28. Bd5 {[%emt 0:03:57]} gxf4 {[%emt 0:05:07]} (28... Bxd5 $142 29. Rxd5 gxf4 30. Bxf4 Qc6 (30... Bg5 31. Bxg5 Nxg5 32. h4 $11)) 29. Bxf4 {[%emt 0:00:08]} Kh8 {[%emt 0:05:59]} 30. Nf3 {[%emt 0:01:13]} Rg8 {[%emt 0:00:07]} 31. Bg3 {[%emt 0:01:08]} Rg6 {[%emt 0:01:02]} 32. Qe4 {[%emt 0:02:58]} Bxd5 {[%emt 0:06:54]} 33. Rxd5 {[%emt 0:00:07]} Qc6 $1 {[%emt 0:00:06] Hoping for ...Nc7.} 34. Nh4 {[%emt 0:01:51]} Bxh4 {[%emt 0:02:23]} 35. Bxh4 {[%emt 0:00:02] [#]} Re8 {[%emt 0:00:08]} ({Black should play} 35... Rf8 $1 $17 36. Qf5 Kg8) 36. Qf5 $1 $11 {[%emt 0:01:09][%cal Oh2h3] The position is equal.} Ng7 {[%emt 0:06:15]} 37. Qxf7 {[%emt 0:03:03][%cal Oh2h3] and h3! should not be overlooked} Rxg4+ {[%emt 0:00:10]} 38. Bg3 {[%emt 0:00:05]} Qg6 {[%emt 0:01:41]} 39. Qxg6 {[%emt 0:01:35]} (39. Qxd7 h5 40. Rf1 h4 $19) 39... Rxg6 {[%emt 0:00:52]} 40. Rxd7 {[%emt 0:00:24]} Nf5 {[%emt 0:00:33]} 41. Rxa7 {[%emt 0:07:44] Weighted Error Value: White=0.09 (flawless) /Black=0.11 (very precise)   Mistake:       	White=1     	Black=2      Inaccurate:     	White=4     	Black=2      OK:         	White=12    	Black=15     Best:        	White=2     	---        Strong:       	White=1     	Black=3} 1/2-1/2

[Event "EICC 2025"]
[Site "Eforie-Nord"]
[Date "2025.03.17"]
[Round "3.20"]
[White "Jobava, Baadur"]
[Black "Cieslak, Patryk"]
[Result "1-0"]
[Annotator "TA"]
[ECO "D38"]
[WhiteElo "2578"]
[BlackElo "2411"]
[PlyCount "125"]
[EventDate "2025.03.14"]
[EventType "swiss"]
[EventCountry "ROU"]
[SourceTitle "playchess.com"]
[Source "ChessBase"]
[SourceQuality "1"]
[TimeControl "40/5400+30:1800+30"]

{[%evp 25,125,-20,0,-22,-10,-16,14,5,11,0,2,0,0,-10,0,0,0,-6,0,-12,-14,-26,0,0,0,0,53,43,54,0,0,0,0,0,0,0,0,0,0,0,0,0,0,0,0,0,7,14,58,66,72,62,117,121,129,129,129,122,171,162,165,156,229,217,190,197,179,101,91,81,83,81,81,81,192,69,187,0,88,0,227,218,211,136,469,425,415,427,934,911,888,874,1624,1431,5089,4610,4822,4722,29980,29977,29970,29975]} 1. c4 {[%emt 0:00:10]} e6 {[%emt 0:00:14]} 2. Nc3 {[%emt 0:03:46]} d5 {[%emt 0:00:34]} 3. d4 {[%emt 0:00:20]} Nf6 {[%emt 0:00:36]} 4. Nf3 {[%emt 0:01:44]} Bb4 {[%emt 0:03:02]} 5. cxd5 {[%emt 0:00:29]} exd5 {[%emt 0:00:12]} 6. Qa4+ {[%emt 0:00:09]} Nc6 {[%emt 0:00:05]} 7. Bg5 {[%emt 0:00:04]} h6 {[%emt 0:05:04]} 8. Bxf6 {[%emt 0:00:15]} Qxf6 {[%emt 0:00:15]} 9. e3 {[%emt 0:00:04]} O-O {[%emt 0:05:14]} 10. Be2 {[%emt 0:00:53]} Be6 {[%emt 0:06:17]} 11. O-O {[%emt 0:00:13]} a6 {[%emt 0:01:02]} 12. Rfc1 {[%emt 0:00:09]} Bd6 {[%emt 0:02:36]} 13. Qd1 {[%emt 0:00:11]} Ne7 {[%emt 0:03:56]} 14. Rab1 {[%emt 0:01:57] D38: Queen's Gambit Declined: Ragozin Defence (4 Nf3 Bb4).} c6 {[%emt 0:15:43]} 15. Na4 $146 {[%emt 0:10:13]} (15. b4 Bf5 16. Bd3 Rfe8 17. Na4 Bg4 18. Be2 Bf5 19. Bd3 Bg4 20. Be2 Bf5 21. Bd3 {½-½ Bochev,K (2479)-Andriuschenko,N (2551) EU-chT7 qual 1-04 email 2005}) 15... Rab8 {[%emt 0:04:08]} 16. b4 {[%emt 0:01:02] The position is equal.} Bf5 {[%emt 0:09:24]} 17. Rb3 {[%emt 0:00:35]} Nc8 {[%emt 0:01:10]} 18. Nc5 {[%emt 0:00:35]} Nb6 {[%emt 0:01:37]} 19. Nd2 {[%emt 0:04:28][%cal Bf3d2,Bd2b3,Bb3a5][%mdl 32]} Qh4 {[%emt 0:00:56]} 20. g3 {[%emt 0:00:07] Successful Defense White} Qe7 {[%emt 0:00:25]} 21. Rbc3 {[%emt 0:06:08]} g6 {[%emt 0:02:28]} 22. Ndb3 {[%emt 0:01:33]} h5 {[%emt 0:05:49]} 23. Na5 {[%emt 0:00:13]} h4 {[%emt 0:01:40]} 24. Bg4 $1 {[%emt 0:05:18]} hxg3 {[%emt 0:04:39]} 25. hxg3 {[%emt 0:00:14]} Bxg4 {[%emt 0:01:17]} (25... Be4 $11) 26. Qxg4 $14 {[%emt 0:00:06]} Kg7 $1 {[%emt 0:00:44]} 27. Qf3 {[%emt 0:05:03]} (27. Qh4 $14) 27... Rh8 $11 {[%emt 0:01:53]} 28. Naxb7 {[%emt 0:02:55]} Rxb7 {[%emt 0:05:56]} 29. Nxb7 {[%emt 0:00:06]} Qxb7 {[%emt 0:00:04]} 30. Rxc6 {[%emt 0:00:04]} Rc8 {[%emt 0:02:33]} 31. Rxc8 {[%emt 0:00:06]} Nxc8 {[%emt 0:00:04][%cal Bb6c8,Bc8e7,Be7f5,Bf5h6,Bh6g8,Bg8f6][%mdl 32]} 32. a3 {[%emt 0:00:30]} Ne7 {[%emt 0:02:17]} 33. Qe2 {[%emt 0:03:43]} Nf5 {[%emt 0:01:06]} 34. Kg2 {[%emt 0:01:52]} Qe7 {[%emt 0:02:04]} 35. Qf3 {[%emt 0:01:30]} (35. Qxa6 Qe4+ (35... Bxg3 36. Qd3 $15) 36. Kg1 Nxe3 (36... Bxg3 37. Qf1 $15) 37. fxe3 Qxe3+ (37... Bxg3 $2 38. Qe2 $18) 38. Kg2 Qxg3+ (38... Qxc1 39. Qxd6 Qc2+ 40. Kh3 $11) 39. Kf1 Qf3+ 40. Ke1 Qe3+ 41. Kd1 Bf4 $19) 35... Qb7 {[%emt 0:00:37]} 36. Rh1 {[%emt 0:00:41]} Nh6 {[%emt 0:06:03]} 37. g4 $1 {[%emt 0:06:27][%cal Bg3g4,Bg4g5][%mdl 32]} Qe7 {[%emt 0:00:50]} 38. Kf1 $1 {[%emt 0:03:01][%cal Of3h3]} (38. Qxd5 Nxg4 39. Kf3 Nh6 $11) 38... Qe6 {[%emt 0:05:02]} ({Black should play} 38... Ng8 $1 $14) 39. g5 $1 $16 {[%emt 0:00:24]} Ng8 {[%emt 0:01:40]} 40. Rh4 {[%emt 0:07:39]} Be7 {[%emt 0:00:36]} 41. Qg3 {[%emt 0:39:50] White is more active.} Bd6 {[%emt 0:20:21]} (41... f6 $16) 42. Qh3 $18 {[%emt 0:00:00]} Qxh3+ {[%emt 0:01:08]} 43. Rxh3 {[%emt 0:00:00]} f6 {[%emt 0:00:14]} (43... Ne7 $16 44. Rh1 Nc8) 44. gxf6+ {[%emt 0:00:00]} Nxf6 {[%emt 0:00:44]} 45. Ke2 {[%emt 0:00:00]} Nd7 {[%emt 0:01:55] [#]} 46. e4 {[%emt 0:00:00]} dxe4 $16 {[%emt 0:02:27]} 47. Rc3 {[%emt 0:00:00]} Kf7 {[%emt 0:02:34]} 48. Rc6 {[%emt 0:00:00][%mdl 1024] White has strong compensation.} Ke6 {[%emt 0:00:15]} 49. Rxa6 {[%emt 0:00:00]} Nf6 {[%emt 0:02:20]} (49... Kd5 $16 50. Ke3 Nf6) 50. Ke3 {[%emt 0:00:00]} (50. b5 $18) 50... Ng4+ {[%emt 0:00:11]} (50... Kd5 $14) 51. Ke2 $2 {[%emt 0:00:00]} (51. Kxe4 $18 {aiming for d5+.} Nxf2+ 52. Kf3) 51... Nh6 {[%emt 0:00:30]} (51... Nf6 $1 $11) 52. Ke3 {[%emt 0:00:00]} (52. Kd2 $16) 52... Ng4+ $18 {[%emt 0:00:02]} 53. Kxe4 {[%emt 0:00:00]} Nxf2+ {[%emt 0:00:04]} 54. Kf3 {[%emt 0:00:00]} Nh3 {[%emt 0:00:10][%mdl 8192] This move loses the game for Black.} (54... Nd3 $16 {is more resistant.} 55. Ke3 Nb2) 55. b5 {[%emt 0:00:00]} Ng5+ {[%emt 0:00:05]} 56. Ke3 {[%emt 0:00:00]} Nf7 {[%emt 0:01:36]} (56... Kd5 $142 57. b6 (57. a4 Ne6 $16) 57... Ne6) 57. a4 {[%emt 0:00:00][%cal Ba3a4,Ba4a5,Ba5a6][%mdl 32]} Kd5 {[%emt 0:01:16]} 58. a5 {[%emt 0:00:00]} g5 {[%emt 0:00:59]} 59. Ra7 {[%emt 0:00:00]} Bf4+ {[%emt 0:01:11]} 60. Kd3 {[%emt 0:00:00]} Nd6 {[%emt 0:00:27]} 61. a6 {[%emt 0:00:00] Intending Rd7 and mate.} Nxb5 {[%emt 0:01:32] [#]} 62. Rb7 $1 {[%emt 0:00:00]} Nd6 {[%emt 0:01:06]} 63. Rb8 {[%emt 0:00:00] Weighted Error Value: White=0.16 (very precise) /Black=0.64  Loses game:     	---       	Black=1      Missed win:     	White=1     	---        Mistake:       	White=4     	Black=8      Inaccurate:     	White=1     	Black=3      OK:         	White=9     	Black=18     Best:        	White=6     	Black=2      Strong:       	White=4     	Black=1} 1-0

[Event "EICC 2025"]
[Site "Eforie-Nord"]
[Date "2025.03.17"]
[Round "3.20"]
[White "Amar, Elham"]
[Black "Risteski, Emil"]
[Result "1/2-1/2"]
[Annotator "RC"]
[ECO "B45"]
[WhiteElo "2533"]
[BlackElo "2365"]
[PlyCount "205"]
[EventDate "2025.03.14"]
[EventType "swiss"]
[EventCountry "ROU"]
[SourceTitle "playchess.com"]
[Source "ChessBase"]
[SourceQuality "1"]
[TimeControl "40/5400+30:1800+30"]

1. e4 {[%emt 0:00:04]} c5 {[%emt 0:00:09]} 2. Nf3 {[%emt 0:00:12]} e6 {[%emt 0:00:05]} 3. d4 {[%emt 0:00:04]} cxd4 {[%emt 0:00:04]} 4. Nxd4 {[%emt 0:00:04]} Nf6 {[%emt 0:00:06]} 5. Nc3 {[%emt 0:00:05]} Nc6 {[%emt 0:00:03]} 6. Nxc6 {[%emt 0:00:07]} bxc6 {[%emt 0:00:05]} 7. e5 {[%emt 0:00:06]} Nd5 {[%emt 0:00:05]} 8. Ne4 {[%emt 0:00:04]} Qc7 {[%emt 0:00:17]} 9. f4 {[%emt 0:00:12]} Qb6 {[%emt 0:00:05]} 10. c4 {[%emt 0:03:53]} Ne3 {[%emt 0:00:38]} 11. Qd3 {[%emt 0:03:47]} Bb4+ {[%emt 0:01:07]} 12. Bd2 {[%emt 0:06:18]} Ba6 {[%emt 0:00:44]} 13. Bxb4 {[%emt 0:06:06]} Qxb4+ {[%emt 0:00:13]} 14. Kf2 {[%emt 0:00:03]} Qxb2+ {[%emt 0:00:11]} 15. Be2 {[%emt 0:00:15]} Nxc4 {[%emt 0:00:28]} 16. Rab1 {[%emt 0:11:49]} Nxe5 {[%emt 0:00:34]} 17. fxe5 {[%emt 0:00:28]} Qxe5 {[%emt 0:01:15]} 18. Qxa6 {[%emt 0:00:10]} Qxe4 {[%emt 0:00:06]} 19. Rhd1 {[%emt 0:00:38]} O-O {[%emt 0:00:16]} 20. Bf3 {[%emt 0:09:28]} Qc2+ {[%emt 0:00:10]} 21. Kg1 {[%emt 0:07:08]} g6 {[%emt 0:00:18]} 22. h3 {[%emt 0:01:55]} Qc5+ {[%emt 0:23:06]} 23. Kh1 {[%emt 0:00:08]} Rfb8 {[%emt 0:15:58]} 24. Rxb8+ {[%emt 0:06:02]} Rxb8 {[%emt 0:00:03]} 25. Rxd7 {[%emt 0:00:30]} Rb1+ {[%emt 0:00:14]} 26. Bd1 {[%emt 0:03:12]} Qf2 {[%emt 0:10:36]} 27. Qd3 {[%emt 0:11:26]} Rb2 {[%emt 0:13:06]} 28. Rd8+ {[%emt 0:01:35]} Kg7 {[%emt 0:00:04]} 29. Qc3+ {[%emt 0:00:38]} Kh6 {[%emt 0:00:08]} 30. Bf3 {[%emt 0:03:34]} Rc2 {[%emt 0:06:16]} 31. Qa1 {[%emt 0:01:21]} Rxa2 {[%emt 0:17:13]} 32. Qf6 {[%emt 0:13:19]} Qe1+ {[%emt 0:03:12]} 33. Kh2 {[%emt 0:00:04]} Ra1 {[%emt 0:01:05]} 34. Rd4 {[%emt 0:07:11]} Qg1+ {[%emt 0:00:05]} 35. Kg3 {[%emt 0:00:03]} Qe1+ {[%emt 0:00:06]} 36. Kg4 {[%emt 0:02:39]} Ra5 {[%emt 0:04:16]} 37. h4 {[%emt 0:01:23]} Qe5 {[%emt 0:02:01]} 38. Qxe5 {[%emt 0:00:16]} Rxe5 {[%emt 0:00:03]} 39. Rd7 {[%emt 0:00:09]} Kg7 {[%emt 0:00:03]} 40. Rxa7 {[%emt 0:00:10]} h5+ {[%emt 0:00:02]} 41. Kg3 {[%emt 0:30:47]} c5 {[%emt 0:32:07]} 42. Rc7 {[%emt 0:00:09]} Kf8 {[%emt 0:00:12]} 43. Kf4 {[%emt 0:00:30]} Rf5+ {[%emt 0:00:03]} 44. Ke3 {[%emt 0:00:04]} Re5+ {[%emt 0:00:19]} 45. Kf4 {[%emt 0:00:44]} Rf5+ {[%emt 0:00:03]} 46. Kg3 {[%emt 0:00:03]} Re5 {[%emt 0:00:07]} 47. Kf2 {[%emt 0:03:02]} Rf5 {[%emt 0:00:07]} 48. g3 {[%emt 0:00:16]} Re5 {[%emt 0:01:16]} 49. Bg2 {[%emt 0:00:19]} Rf5+ {[%emt 0:01:36]} 50. Ke3 {[%emt 0:00:28]} Re5+ {[%emt 0:00:01]} 51. Kd3 {[%emt 0:00:17]} Kg8 {[%emt 0:00:19]} 52. Be4 {[%emt 0:00:31]} Kf8 {[%emt 0:00:14]} 53. Ra7 {[%emt 0:00:37]} Kg8 {[%emt 0:00:35]} 54. Bc6 {[%emt 0:01:49]} Kf8 {[%emt 0:00:11]} 55. Rb7 {[%emt 0:00:24]} Re1 {[%emt 0:01:05]} 56. Rb3 {[%emt 0:00:21]} Ke7 {[%emt 0:04:47]} 57. Rb7+ {[%emt 0:00:28]} Kf8 {[%emt 0:00:05]} 58. Rb3 {[%emt 0:01:07]} Ke7 {[%emt 0:00:07]} 59. Kd2 {[%emt 0:00:29]} Re5 {[%emt 0:00:19]} 60. Rb7+ {[%emt 0:00:13]} Kf8 {[%emt 0:00:10]} 61. Rc7 {[%emt 0:00:21]} Rf5 {[%emt 0:00:39]} 62. Ke3 {[%emt 0:00:13]} Re5+ {[%emt 0:00:08]} 63. Kf4 {[%emt 0:00:02]} Rf5+ {[%emt 0:00:04]} 64. Ke4 {[%emt 0:00:05]} Kg7 {[%emt 0:01:15]} 65. Be8 {[%emt 0:00:42]} Kf8 {[%emt 0:00:05]} 66. Bd7 {[%emt 0:00:18]} Kg8 {[%emt 0:00:30]} 67. Bb5 {[%emt 0:00:06]} Kf8 {[%emt 0:01:05]} 68. Bd3 {[%emt 0:00:08]} Kg7 {[%emt 0:00:00]} 69. Ke3 {[%emt 0:00:00]} Rd5 {[%emt 0:00:00]} 70. Be4 {[%emt 0:00:00]} Rd8 {[%emt 0:00:00]} 71. Rxc5 {[%emt 0:00:00]} Kf6 {[%emt 0:00:00]} 72. Rc7 {[%emt 0:00:00]} Rb8 {[%emt 0:00:00]} 73. Bb7 {[%emt 0:00:00]} Rd8 {[%emt 0:00:00]} 74. Bc6 {[%emt 0:00:00]} Rb8 {[%emt 0:00:00]} 75. Ba4 {[%emt 0:00:00]} Rd8 {[%emt 0:00:00]} 76. Bd7 {[%emt 0:00:00]} Ke7 {[%emt 0:00:00]} 77. Bc6+ {[%emt 0:00:00]} Kf6 {[%emt 0:00:00]} 78. Ke4 {[%emt 0:00:00]} Rb8 {[%emt 0:00:00]} 79. Bb7 {[%emt 0:00:00]} Rd8 {[%emt 0:00:00]} 80. Rc3 {[%emt 0:00:00]} Rb8 {[%emt 0:00:00]} 81. Rc7 {[%emt 0:00:00]} Rd8 {[%emt 0:00:00]} 82. Ke3 {[%emt 0:00:00]} Rb8 {[%emt 0:00:00]} 83. Rd7 {[%emt 0:00:00]} Rg8 {[%emt 0:00:00]} 84. Kd4 {[%emt 0:00:00]} Re8 {[%emt 0:00:00]} 85. Ke4 {[%emt 0:00:00]} Rb8 {[%emt 0:00:00]} 86. Kd3 {[%emt 0:00:00]} Re8 {[%emt 0:00:00]} 87. Kd4 {[%emt 0:00:00]} Re7 {[%emt 0:00:00]} 88. Rxe7 {[%emt 0:00:00]} Kxe7 {[%emt 0:00:00]} 89. Ke5 {[%emt 0:00:00]} f6+ {[%emt 0:00:00]} 90. Ke4 {[%emt 0:00:00]} g5 {[%emt 0:01:08]} 91. hxg5 fxg5 {[%emt 0:00:01]} 92. Ke5 {[%emt 0:00:00]} g4 {[%emt 0:00:06]} 93. Bc6 {[%emt 0:00:00]} h4 {[%emt 0:00:05]} 94. gxh4 {[%emt 0:00:00]} Kf7 {[%emt 0:00:03]} 95. Kf4 {[%emt 0:00:00]} Kg7 {[%emt 0:00:04]} 96. Kg5 {[%emt 0:00:00]} g3 {[%emt 0:00:03]} 97. Bg2 {[%emt 0:00:00]} e5 {[%emt 0:00:04]} 98. h5 {[%emt 0:00:00]} e4 {[%emt 0:00:04]} 99. h6+ {[%emt 0:00:00]} Kh8 {[%emt 0:00:02]} 100. Bxe4 {[%emt 0:00:00]} g2 {[%emt 0:00:02]} 101. Bxg2 {[%emt 0:00:00]} Kg8 {[%emt 0:00:02]} 102. Kg6 {[%emt 0:00:00]} Kh8 {[%emt 0:00:02]} 103. h7 {[%emt 0:20:51]} 1/2-1/2

[Event "EICC 2025"]
[Site "Eforie-Nord"]
[Date "2025.03.17"]
[Round "3.21"]
[White "Bernadskiy, Vitaliy"]
[Black "Yordanov, Lachezar"]
[Result "1/2-1/2"]
[Annotator "RC"]
[ECO "A06"]
[WhiteElo "2529"]
[BlackElo "2361"]
[PlyCount "153"]
[EventDate "2025.03.14"]
[EventType "swiss"]
[EventCountry "ROU"]
[SourceTitle "playchess.com"]
[Source "ChessBase"]
[SourceQuality "1"]
[TimeControl "40/5400+30:1800+30"]

1. e3 {[%emt 0:00:04]} d5 {[%emt 0:00:48]} 2. b3 {[%emt 0:02:12]} Bf5 {[%emt 0:05:13]} 3. Nf3 {[%emt 0:02:09]} e6 {[%emt 0:00:27]} 4. Bb2 {[%emt 0:00:09]} Nf6 {[%emt 0:02:33]} 5. Nc3 {[%emt 0:04:14]} Be7 {[%emt 0:03:55]} 6. h3 {[%emt 0:03:10]} h6 {[%emt 0:01:01]} 7. Qe2 {[%emt 0:01:50]} c5 {[%emt 0:05:25]} 8. g4 {[%emt 0:04:21]} Bh7 {[%emt 0:00:51]} 9. Bg2 {[%emt 0:09:33]} Nc6 {[%emt 0:00:57]} 10. d3 {[%emt 0:05:25]} a6 {[%emt 0:13:22]} 11. a3 {[%emt 0:06:29]} O-O {[%emt 0:10:13]} 12. g5 {[%emt 0:03:57]} hxg5 {[%emt 0:00:04]} 13. Nxg5 {[%emt 0:00:05]} b5 {[%emt 0:00:19]} 14. h4 {[%emt 0:00:44]} Bf5 {[%emt 0:02:31]} 15. Nb1 {[%emt 0:03:04]} Rc8 {[%emt 0:01:46]} 16. Nd2 {[%emt 0:00:44]} c4 {[%emt 0:03:26]} 17. bxc4 {[%emt 0:10:14]} bxc4 {[%emt 0:00:46]} 18. dxc4 {[%emt 0:00:08]} dxc4 {[%emt 0:02:29]} 19. Nxc4 {[%emt 0:00:47]} Na5 {[%emt 0:01:06]} 20. Rd1 {[%emt 0:05:02]} Qc7 {[%emt 0:19:09]} 21. Nxa5 {[%emt 0:06:44]} Qxa5+ {[%emt 0:00:08]} 22. c3 {[%emt 0:00:27]} Bxa3 {[%emt 0:03:16]} 23. Ra1 {[%emt 0:02:45]} Bxb2 {[%emt 0:00:11]} 24. Rxa5 {[%emt 0:01:24]} Bxc3+ {[%emt 0:00:03]} 25. Kf1 {[%emt 0:00:04]} Bxa5 {[%emt 0:00:06]} 26. Bf3 {[%emt 0:07:06]} Rc1+ {[%emt 0:06:49]} 27. Kg2 {[%emt 0:00:40]} Rxh1 {[%emt 0:00:21]} 28. Kxh1 {[%emt 0:00:10]} Nh7 {[%emt 0:00:36]} 29. Nxh7 {[%emt 0:03:42]} Bxh7 {[%emt 0:00:13]} 30. Qxa6 {[%emt 0:00:04]} Bd8 {[%emt 0:00:08]} 31. h5 {[%emt 0:00:07]} Bf6 {[%emt 0:00:42]} 32. Kg2 {[%emt 0:00:58]} Rd8 {[%emt 0:00:06]} 33. e4 {[%emt 0:01:23]} g6 {[%emt 0:03:30]} 34. Qb7 {[%emt 0:02:44]} Rf8 {[%emt 0:04:01]} 35. Qc7 {[%emt 0:02:28]} gxh5 {[%emt 0:02:49]} 36. Qf4 {[%emt 0:00:38]} Bg7 {[%emt 0:00:12]} 37. Bxh5 {[%emt 0:00:10]} e5 {[%emt 0:00:20]} 38. Qh4 {[%emt 0:03:29]} f5 {[%emt 0:00:28]} 39. exf5 {[%emt 0:02:03]} Bxf5 {[%emt 0:00:38]} 40. Bd1 {[%emt 0:00:28]} Be6 {[%emt 0:02:18]} 41. Bc2 {[%emt 0:30:48]} Rf6 {[%emt 0:31:10]} 42. Bh7+ {[%emt 0:00:36]} Kf7 {[%emt 0:00:12]} 43. Qe4 {[%emt 0:01:44]} Rh6 {[%emt 0:05:30]} 44. Qf3+ {[%emt 0:01:43]} Ke7 {[%emt 0:00:14]} 45. Qa3+ {[%emt 0:01:23]} Kf7 {[%emt 0:00:17]} 46. Be4 {[%emt 0:01:13]} Bf6 {[%emt 0:01:06]} 47. Qc3 {[%emt 0:01:30]} Rh4 {[%emt 0:00:00]} 48. Qc7+ {[%emt 0:00:00]} Kf8 {[%emt 0:00:00]} 49. f3 {[%emt 0:00:00]} Bf7 {[%emt 0:00:00]} 50. Qd6+ {[%emt 0:00:00]} Kg7 {[%emt 0:00:00]} 51. Qd7 {[%emt 0:00:00]} Kf8 {[%emt 0:00:00]} 52. Kg3 {[%emt 0:00:00]} Rf4 {[%emt 0:00:00]} 53. Kf2 {[%emt 0:00:00]} Rh4 {[%emt 0:00:00]} 54. Qd6+ {[%emt 0:00:00]} Kg7 {[%emt 0:00:00]} 55. Ke3 {[%emt 0:00:00]} Rh8 {[%emt 0:00:00]} 56. Qc7 {[%emt 0:00:00]} Rd8 {[%emt 0:00:00]} 57. Kf2 {[%emt 0:00:00]} Bh4+ {[%emt 0:00:00]} 58. Kg2 {[%emt 0:00:00]} Bf6 {[%emt 0:00:00]} 59. Kg3 {[%emt 0:00:00]} Rd1 {[%emt 0:00:00]} 60. Qa7 {[%emt 0:00:00]} Rd2 {[%emt 0:00:00]} 61. Bf5 {[%emt 0:00:00]} Kg8 {[%emt 0:00:00]} 62. Qg1 {[%emt 0:00:00]} Kf8 {[%emt 0:00:00]} 63. Qc5+ {[%emt 0:00:00]} Kg7 {[%emt 0:00:00]} 64. Qa7 {[%emt 0:00:00]} Kg8 {[%emt 0:00:00]} 65. Qe3 {[%emt 0:00:00]} Rd4 {[%emt 0:00:00]} 66. Qh6 {[%emt 0:00:00]} Bg7 {[%emt 0:00:00]} 67. Qb6 {[%emt 0:00:00]} Kf8 {[%emt 0:00:00]} 68. Qc5+ {[%emt 0:00:00]} Ke8 {[%emt 0:00:00]} 69. Be4 {[%emt 0:00:00]} Kd7 {[%emt 0:00:00]} 70. Bf5+ {[%emt 0:00:00]} Kd8 {[%emt 0:00:00]} 71. Qa3 {[%emt 0:00:00]} Be8 {[%emt 0:00:49]} 72. Qb3 {[%emt 0:01:29]} Rd6 {[%emt 0:02:00]} 73. Qg8 {[%emt 0:04:32]} Bh6 {[%emt 0:00:23]} 74. Kg4 {[%emt 0:01:05]} Ke7 {[%emt 0:01:31]} 75. Qh7+ {[%emt 0:01:16]} Bf7 {[%emt 0:00:20]} 76. Qh8 {[%emt 0:01:06]} Bf4 {[%emt 0:01:03]} 77. Qh4+ {[%emt 0:02:30]} 1/2-1/2